fUST/lending_fUST_20250426
["ID","MTS","AMOUNT","RATE_DAILY","PERIOD"]
[358987625,1745609451141,-163.55629813,0.00016712,2]
[358987626,1745609451151,-500.0,0.00016712,2]
[358987627,1745609451163,-500.0,0.00016712,2]
[358987628,1745609451173,-1052.74,0.00016712,2]
[358987629,1745609451184,-500.0,0.00016712,2]
[358987630,1745609451193,-500.0,0.00016712,2]
[358987631,1745609451204,-500.0,0.00016712,2]
[358987632,1745609451214,-500.0,0.00016712,2]
[358987633,1745609451224,-500.0,0.00016712,2]
[358987634,1745609451234,-730.93,0.00016712,2]
[358987635,1745609451244,-500.0,0.00016712,2]
[358987636,1745609451254,-500.0,0.00016712,2]
[358987637,1745609451265,-554.7,0.00016712,2]
[358987638,1745609451277,-500.0,0.00016712,2]
[358987639,1745609451288,-500.0,0.00016712,2]
[358987640,1745609451298,-500.0,0.00016712,2]
[358987641,1745609451309,-500.0,0.00016712,2]
[358987642,1745609451319,-619.46,0.00016712,2]
[358987643,1745609451330,-500.0,0.00016712,2]
[358987644,1745609451340,-500.0,0.00016712,2]
[358987645,1745609451350,-451.51960134,0.00016712,2]
[358987646,1745609451360,-615.12903703,0.00016712,2]
[358987647,1745609451370,-500.0,0.00016712,2]
[358987648,1745609451380,-500.0,0.00016712,2]
[358987649,1745609451391,-500.0,0.00016712,2]
[358987650,1745609451401,-500.0,0.00016712,2]
[358987651,1745609451411,-500.0,0.00016712,2]
[358987652,1745609451421,-4272.76,0.00016712,2]
[358987653,1745609451431,-520.83038148,0.00016712,2]
[358987654,1745609451442,-500.0,0.00016712,2]
[358987655,1745609451453,-895.02,0.00016712,2]
[358987656,1745609451463,-500.0,0.00016712,2]
[358987657,1745609451473,-500.0,0.00016712,2]
[358987658,1745609451485,-1320.26,0.00016712,2]
[358987659,1745609451495,-500.0,0.00016712,2]
[358987660,1745609451505,-500.0,0.00016712,2]
[358987661,1745609451517,-500.0,0.00016712,2]
[358987662,1745609451527,-507.05,0.00016712,2]
[358987663,1745609451537,-500.0,0.00016712,2]
[358987664,1745609451547,-500.0,0.00016712,2]
[358987665,1745609451557,-5452.59,0.00016712,2]
[358987666,1745609451567,-500.0,0.00016712,2]
[358987667,1745609451576,-500.0,0.00016712,2]
[358987668,1745609451587,-1242.37,0.00016712,2]
[358987669,1745609451597,-297.12,0.00016712,2]
[358987670,1745609451606,-500.0,0.00016712,2]
[358987671,1745609451616,-500.0,0.00016712,2]
[358987672,1745609451626,-316.87,0.00016712,2]
[358987673,1745609451636,-500.0,0.00016712,2]
[358987674,1745609451646,-512.17621799,0.00016712,2]
[358987675,1745609451656,-500.0,0.00016712,2]
[358987676,1745609451666,-500.0,0.00016712,2]
[358987677,1745609451675,-500.0,0.00016712,2]
[358987678,1745609451685,-834.33,0.00016712,2]
[358987679,1745609451695,-500.0,0.00016712,2]
[358987680,1745609451707,-292.62777342,0.00016712,2]
[358987681,1745609451717,-1028.89,0.00016712,2]
[358987682,1745609451726,-500.0,0.00016712,2]
[358987683,1745609451735,-500.0,0.00016712,2]
[358987684,1745609451745,-526.74,0.00016712,2]
[358987685,1745609451755,-500.0,0.00016712,2]
[358987686,1745609451769,-500.0,0.00016712,2]
[358987687,1745609451778,-500.0,0.00016712,2]
[358987688,1745609451788,-500.0,0.00016712,2]
[358987689,1745609451799,-605.46,0.00016712,2]
[358987690,1745609451809,-500.0,0.00016712,2]
[358987691,1745609451818,-500.0,0.00016712,2]
[358987692,1745609451828,-500.0,0.00016712,2]
[358987693,1745609451839,-500.0,0.00016712,2]
[358987694,1745609451849,-500.0,0.00016712,2]
[358987695,1745609451858,-500.0,0.00016712,2]
[358987696,1745609451868,-500.0,0.00016712,2]
[358987697,1745609451877,-500.0,0.00016712,2]
[358987698,1745609451887,-500.0,0.00016712,2]
[358987699,1745609451897,-857.32,0.00016712,2]
[358987700,1745609451906,-500.0,0.00016712,2]
[358987701,1745609451916,-601.64,0.00016712,2]
[358987702,1745609451926,-500.0,0.00016712,2]
[358987703,1745609451936,-500.0,0.00016712,2]
[358987704,1745609451945,-500.0,0.00016712,2]
[358987705,1745609451957,-500.0,0.00016712,2]
[358987706,1745609451966,-500.0,0.00016712,2]
[358987707,1745609451976,-500.0,0.00016712,2]
[358987708,1745609451986,-652.12,0.00016712,2]
[358987709,1745609451996,-602.1,0.00016712,2]
[358987710,1745609452005,-500.0,0.00016712,2]
[358987711,1745609452015,-500.0,0.00016712,2]
[358987712,1745609452024,-500.0,0.00016712,2]
[358987713,1745609452033,-820.17,0.00016712,2]
[358987714,1745609452043,-500.0,0.00016712,2]
[358987715,1745609452053,-500.0,0.00016712,2]
[358987716,1745609452062,-500.0,0.00016712,2]
[358987717,1745609452072,-1211.14,0.00016712,2]
[358987718,1745609452082,-500.0,0.00016712,2]
[358987719,1745609452091,-500.0,0.00016712,2]
[358987720,1745609452101,-500.0,0.00016712,2]
[358987721,1745609452111,-500.0,0.00016712,2]
[358987722,1745609452122,-534.464613,0.00016712,2]
[358987723,1745609452132,-500.0,0.00016712,2]
[358987724,1745609452142,-500.0,0.00016712,2]
[358987725,1745609452154,-500.0,0.00016712,2]
[358987726,1745609452164,-2895.82,0.00016712,2]
[358987727,1745609452175,-500.0,0.00016712,2]
[358987728,1745609452186,-866.6,0.00016712,2]
[358987729,1745609452196,-500.0,0.00016712,2]
[358987730,1745609452206,-1832.04,0.00016712,2]
[358987731,1745609452215,-500.0,0.00016712,2]
[358987732,1745609452225,-500.0,0.00016712,2]
[358987733,1745609452237,-500.0,0.00016712,2]
[358987734,1745609452247,-1603.22,0.00016712,2]
[358987735,1745609452256,-500.0,0.00016712,2]
[358987736,1745609452267,-500.0,0.00016712,2]
[358987737,1745609452277,-500.0,0.00016712,2]
[358987738,1745609452287,-500.0,0.00016712,2]
[358987739,1745609452298,-657.49,0.00016712,2]
[358987740,1745609452309,-500.0,0.00016712,2]
[358987741,1745609452318,-500.0,0.00016712,2]
[358987742,1745609452328,-779.94,0.00016712,2]
[358987743,1745609452338,-500.0,0.00016712,2]
[358987744,1745609452347,-500.0,0.00016712,2]
[358987745,1745609452357,-500.0,0.00016712,2]
[358987746,1745609452366,-500.0,0.00016712,2]
[358987747,1745609452377,-500.0,0.00016712,2]
[358987748,1745609452387,-976.0,0.00016733,2]
[358987749,1745609452396,-1000.0,0.00016747,2]
[358987750,1745609452406,-226.36755276,0.00016748,2]
[358987751,1745609452415,-420.0,0.00016793,2]
[358987752,1745609452425,-226.36755276,0.00016885,2]
[358987753,1745609452436,-151.0,0.000169,2]
[358987754,1745609452445,-211.4422169,0.000169,2]
[358987755,1745609452455,-500.88761538,0.00016973,2]
[358987756,1745609452465,-500.64439162,0.00016973,2]
[358987757,1745609452475,-500.0,0.00016973,2]
[358987758,1745609452485,-629.0162293,0.00016973,2]
[358987759,1745609452495,-500.63379328,0.00016973,2]
[358987760,1745609452505,-500.0,0.00016973,2]
[358987761,1745609452514,-500.0,0.00016973,2]
[358987762,1745609452524,-197.31099372,0.00016973,2]
[358987763,1745609452534,-500.0,0.00016973,2]
[358987764,1745609452544,-500.0,0.00016973,2]
[358987765,1745609452554,-500.0,0.00016973,2]
[358987766,1745609452564,-500.0,0.00016973,2]
[358987767,1745609452574,-500.0,0.00016973,2]
[358987768,1745609452585,-500.0,0.00016973,2]
[358987769,1745609452595,-500.0,0.00016973,2]
[358987770,1745609452605,-562.26843574,0.00016973,2]
[358987771,1745609452615,-160.0,0.00016979,2]
[358987772,1745609452625,-45184.76385654,0.0001698,2]
[358987773,1745609452805,-2018.38098029,0.0001698,2]
[358987774,1745609471000,156.713468,0.00027,30]
[358987777,1745610059703,1086.46365485,0.00027,30]
[358987780,1745610426147,-300.0,0.00015345,2]
[358987781,1745610426178,-500.0,0.00015346,2]
[358987782,1745610426209,-500.0,0.00015346,2]
[358987783,1745610426233,-500.0,0.00015346,2]
[358987784,1745610426257,-500.0,0.00015346,2]
[358987785,1745610426278,-411.43150359,0.00015346,2]
[358987786,1745610426298,-248.6023329,0.00015346,2]
[358987787,1745610426319,-500.0,0.00015346,2]
[358987788,1745610426342,-542.2,0.00015346,2]
[358987789,1745610426366,-580.36410848,0.00015346,2]
[358987790,1745610426387,-900.0,0.00015346,2]
[358987791,1745610426410,-500.0,0.00015347,2]
[358987792,1745610426432,-395.67857276,0.00015347,2]
[358987793,1745610426454,-500.0,0.00015347,2]
[358987794,1745610426477,-500.0,0.00015347,2]
[358987795,1745610426507,-500.0,0.00015347,2]
[358987796,1745610426530,-105.36301554,0.00015347,2]
[358987797,1745610440196,-64.23235346,0.00015347,2]
[358987798,1745610440226,-350.24829303,0.00015347,2]
[358987799,1745610440247,-462.14717395,0.00015347,2]
[358987827,1745610632093,-300.0,0.00015346,2]
[358987828,1745610632103,-500.0,0.00015347,2]
[358987830,1745610632112,-500.0,0.00015347,2]
[358987831,1745610632122,-500.0,0.00015347,2]
[358987832,1745610632131,-500.0,0.00015347,2]
[358987834,1745610632140,-500.0,0.00015347,2]
[358987835,1745610632150,-500.0,0.00015347,2]
[358987836,1745610632159,-500.0,0.00015347,2]
[358987837,1745610632168,-500.0,0.00015347,2]
[358987839,1745610632178,-500.0,0.00015347,2]
[358987840,1745610632188,-14.40864328,0.00015347,2]
[358988354,1745610643301,-485.59135672,0.00015347,2]
[358988356,1745610643311,-500.0,0.00015347,2]
[358988358,1745610643321,-500.0,0.00015347,2]
[358988360,1745610643331,-500.0,0.00015347,2]
[358988362,1745610643341,-500.0,0.00015347,2]
[358988363,1745610643351,-373.98631483,0.00015384,2]
[358988365,1745610643360,-699.58813805,0.00015385,2]
[358989407,1745610860690,1651.0152863,0.00014386,2]
[358989408,1745610860722,23248.9847137,0.00014386,2]
[358989409,1745611149442,237.8892141,0.00014441,2]
[358991746,1745611650100,-474.83,0.00015054,2]
[358991747,1745611650128,-1200.0,0.00015054,2]
[358991748,1745611650158,-300.0,0.00015054,2]
[358991749,1745611650183,-500.0,0.00015054,2]
[358991750,1745611650213,-664.29757984,0.00015054,2]
[358991751,1745611746484,1103.45110405,0.00014954,2]
[358991752,1745611756117,-300.0,0.00015053,2]
[358991753,1745611756139,-32602.1687337,0.00015054,2]
[358991754,1745611766087,-370.78525913,0.00015054,2]
[358991755,1745611767720,472.962603,0.00014837,2]
[358991756,1745611773129,-500.0,0.00015053,2]
[358991757,1745611773152,-462.28342249,0.00015053,2]
[358991758,1745611773175,-500.0,0.00015053,2]
[358991759,1745611773198,-3356.66914195,0.00015054,2]
[358991769,1745611794719,250.0,0.00014823,2]
[358991770,1745611826903,307.0124446,0.00014786,2]
[358991809,1745611838357,-523.59839575,0.00015052,2]
[358991811,1745611838368,-501.92011796,0.00015052,2]
[358991813,1745611838378,-500.0,0.00015052,2]
[358991815,1745611838388,-196.88061053,0.00015052,2]
[358991817,1745611838398,-500.0,0.00015052,2]
[358991819,1745611838407,-500.0,0.00015052,2]
[358991821,1745611838417,-500.0,0.00015052,2]
[358991823,1745611838426,-500.0,0.00015052,2]
[358991825,1745611838435,-471.21424136,0.00015052,2]
[358991827,1745611838445,-500.0,0.00015052,2]
[358991829,1745611838455,-500.0,0.00015052,2]
[358991831,1745611838464,-500.0,0.00015052,2]
[358991833,1745611838473,-223.23941414,0.00015052,2]
[358991835,1745611838482,-500.0,0.00015052,2]
[358991836,1745611838492,-500.0,0.00015052,2]
[358991839,1745611838502,-500.0,0.00015052,2]
[358991841,1745611838511,-500.0,0.00015052,2]
[358991842,1745611838521,-500.0,0.00015052,2]
[358991844,1745611838530,-500.0,0.00015052,2]
[358991846,1745611838540,-500.0,0.00015052,2]
[358991848,1745611838550,-500.0,0.00015052,2]
[358991850,1745611838560,-500.0,0.00015052,2]
[358991852,1745611838570,-588.07006874,0.00015052,2]
[358991854,1745611838579,-500.0,0.00015052,2]
[358991856,1745611838590,-500.0,0.00015052,2]
[358991859,1745611838600,-500.0,0.00015052,2]
[358991860,1745611838609,-500.0,0.00015052,2]
[358991862,1745611838619,-500.0,0.00015052,2]
[358991864,1745611838628,-500.0,0.00015052,2]
[358991865,1745611838638,-500.0,0.00015052,2]
[358991866,1745611838647,-500.0,0.00015052,2]
[358991867,1745611838657,-500.0,0.00015052,2]
[358991868,1745611838666,-500.0,0.00015052,2]
[358991870,1745611838676,-500.0,0.00015052,2]
[358991871,1745611838686,-500.0,0.00015052,2]
[358991872,1745611838696,-500.0,0.00015052,2]
[358991873,1745611838705,-500.0,0.00015052,2]
[358991874,1745611838715,-500.0,0.00015052,2]
[358991875,1745611838724,-500.0,0.00015052,2]
[358991876,1745611838734,-500.0,0.00015052,2]
[358991877,1745611838743,-570.28313217,0.00015052,2]
[358991878,1745611838752,-500.0,0.00015052,2]
[358991879,1745611838939,-500.0,0.00015052,2]
[358991880,1745611838949,-500.0,0.00015052,2]
[358991881,1745611838959,-500.0,0.00015052,2]
[358991882,1745611838968,-500.0,0.00015052,2]
[358991883,1745611838977,-500.0,0.00015052,2]
[358991884,1745611838987,-500.0,0.00015052,2]
[358991885,1745611838996,-500.0,0.00015052,2]
[358991886,1745611839006,-500.0,0.00015052,2]
[358991887,1745611839015,-278.7017583,0.00015052,2]
[358991888,1745611839025,-500.0,0.00015052,2]
[358991889,1745611839034,-500.0,0.00015052,2]
[358991890,1745611839043,-500.0,0.00015052,2]
[358991891,1745611839054,-500.0,0.00015052,2]
[358991892,1745611839063,-500.0,0.00015052,2]
[358991893,1745611839076,-500.0,0.00015052,2]
[358991894,1745611839085,-48.83001195,0.00015052,2]
[358991895,1745611839097,-451.16998805,0.00015052,2]
[358991896,1745611839107,-500.0,0.00015052,2]
[358991897,1745611839117,-500.0,0.00015052,2]
[358991898,1745611839126,-500.0,0.00015052,2]
[358991899,1745611839135,-500.0,0.00015052,2]
[358991900,1745611839146,-14.21335376,0.00015052,2]
[358992176,1745611846372,-485.78664624,0.00015052,2]
[358992178,1745611846382,-500.0,0.00015052,2]
[358992179,1745611846392,-500.0,0.00015052,2]
[358992182,1745611846402,-500.0,0.00015052,2]
[358992183,1745611846412,-500.0,0.00015052,2]
[358992185,1745611846421,-500.0,0.00015052,2]
[358992187,1745611846432,-500.0,0.00015052,2]
[358992189,1745611846442,-500.0,0.00015052,2]
[358992192,1745611846452,-500.0,0.00015052,2]
[358992194,1745611846461,-300.0,0.00015052,2]
[358992196,1745611846471,-300.0,0.00015052,2]
[358992198,1745611846481,-1619.0,0.00015053,2]
[358992199,1745611846490,-13670.37686522,0.00015054,2]
[358992201,1745611846500,-500.0,0.00015055,2]
[358992203,1745611846509,-500.0,0.00015055,2]
[358992205,1745611846518,-500.0,0.00015055,2]
[358992207,1745611846527,-499.96,0.00015055,2]
[358992209,1745611846536,-1000.0,0.00015246,2]
[358992211,1745611846545,-151.0,0.00015246,2]
[358992213,1745611846555,-151.0,0.00015246,2]
[358992215,1745611846564,-250.0,0.00015246,2]
[358992217,1745611846573,-247.54645684,0.00015322,2]
[358992219,1745611846582,-1103.45110404,0.00015398,2]
[358992221,1745611846591,-1103.45110404,0.00015842,2]
[358992223,1745611846601,-152.0,0.00015991,2]
[358992225,1745611846610,-2378.0,0.00016,2]
[358992227,1745611846619,-400.48747018,0.00016164,2]
[358992229,1745611846628,-1103.45110404,0.00016286,2]
[358992231,1745611846637,-151.0,0.00016428,2]
[358992233,1745611846647,-207.4,0.00016428,2]
[358992235,1745611846656,-7103.09,0.00016428,3]
[358992237,1745611846664,-887.89,0.00016428,3]
[358992239,1745611846673,-443.94,0.00016428,3]
[358992241,1745611846683,-221.97,0.00016428,3]
[358992243,1745611846693,-665.95,0.00016428,3]
[358992245,1745611846703,-316.76,0.00016428,3]
[358992247,1745611846713,-165.36639478,0.00016437,2]
[358992248,1745611846722,-151.0,0.00016438,2]
[358992250,1745611846731,-500.0,0.00016438,2]
[358992252,1745611846740,-500.0,0.00016438,2]
[358992254,1745611846749,-500.0,0.00016438,2]
[358992256,1745611846758,-500.0,0.00016438,2]
[358992258,1745611846768,-500.0,0.00016438,2]
[358992260,1745611846777,-543.80825574,0.00016438,2]
[358992262,1745611846787,-542.1,0.00016438,2]
[358992264,1745611846796,-500.0,0.00016438,2]
[358992266,1745611846805,-500.0,0.00016438,2]
[358992268,1745611846814,-505.13,0.00016438,2]
[358992270,1745611846823,-500.0,0.00016438,2]
[358992272,1745611846833,-500.0,0.00016438,2]
[358992274,1745611846842,-500.0,0.00016438,2]
[358992276,1745611846851,-500.0,0.00016438,2]
[358992278,1745611846861,-500.0,0.00016438,2]
[358992280,1745611846872,-500.0,0.00016438,2]
[358992282,1745611846882,-500.0,0.00016438,2]
[358992284,1745611846891,-500.0,0.00016438,2]
[358992286,1745611846900,-291.80303054,0.00016438,2]
[358992288,1745611846909,-500.0,0.00016438,2]
[358992290,1745611846918,-500.0,0.00016438,2]
[358992292,1745611846928,-500.0,0.00016438,2]
[358992294,1745611846937,-500.0,0.00016438,2]
[358992296,1745611846947,-500.0,0.00016438,2]
[358992298,1745611846956,-500.0,0.00016438,2]
[358992299,1745611846965,-500.0,0.00016438,2]
[358992301,1745611846975,-500.0,0.00016438,2]
[358992303,1745611846984,-209.98422998,0.00016438,2]
[358992305,1745611846993,-500.0,0.00016438,2]
[358992307,1745611847002,-500.0,0.00016438,2]
[358992309,1745611847011,-455.59,0.00016438,2]
[358992311,1745611847021,-500.0,0.00016438,2]
[358992313,1745611847030,-500.0,0.00016438,2]
[358992315,1745611847039,-755.86,0.00016438,2]
[358992317,1745611847049,-500.0,0.00016438,2]
[358992319,1745611847058,-500.0,0.00016438,2]
[358992321,1745611847068,-500.0,0.00016438,2]
[358992323,1745611847080,-500.0,0.00016438,2]
[358992325,1745611847089,-187.86,0.00016438,2]
[358992327,1745611847098,-500.0,0.00016438,2]
[358992329,1745611847108,-500.0,0.00016438,2]
[358992331,1745611847119,-500.0,0.00016438,2]
[358992333,1745611847128,-500.0,0.00016438,2]
[358992335,1745611847138,-593.97187001,0.00016438,2]
[358992337,1745611847148,-500.0,0.00016438,2]
[358992339,1745611847158,-500.0,0.00016438,2]
[358992341,1745611847168,-500.0,0.00016438,2]
[358992343,1745611847178,-194.84,0.00016438,2]
[358992345,1745611847187,-500.0,0.00016438,2]
[358992347,1745611847196,-506.51856714,0.00016438,2]
[358992348,1745611847205,-500.0,0.00016438,2]
[358992350,1745611847215,-500.0,0.00016438,2]
[358992352,1745611847225,-500.0,0.00016438,2]
[358992354,1745611847234,-500.0,0.00016438,2]
[358992356,1745611847244,-500.0,0.00016438,2]
[358992358,1745611847253,-317.43,0.00016438,2]
[358992360,1745611847262,-500.0,0.00016438,2]
[358992362,1745611847271,-500.0,0.00016438,2]
[358992364,1745611847280,-500.0,0.00016438,2]
[358992366,1745611847289,-703.74,0.00016438,2]
[358992368,1745611847299,-500.0,0.00016438,2]
[358992369,1745611847309,-516.33,0.00016438,2]
[358992371,1745611847318,-1017.46,0.00016438,2]
[358992373,1745611847328,-600.56088825,0.00016438,2]
[358992375,1745611847337,-500.0,0.00016438,2]
[358992377,1745611847346,-500.0,0.00016438,2]
[358992379,1745611847356,-500.0,0.00016438,2]
[358992381,1745611847365,-500.0,0.00016438,2]
[358992383,1745611847374,-500.0,0.00016438,2]
[358992385,1745611847384,-500.0,0.00016438,2]
[358992387,1745611847393,-500.0,0.00016438,2]
[358992389,1745611847401,-500.0,0.00016438,2]
[358992391,1745611847410,-500.0,0.00016438,2]
[358992393,1745611847419,-500.0,0.00016438,2]
[358992395,1745611847429,-504.35308055,0.00016438,2]
[358992397,1745611847438,-500.0,0.00016438,2]
[358992399,1745611847447,-500.0,0.00016438,2]
[358992401,1745611847456,-500.0,0.00016438,2]
[358992403,1745611847465,-500.0,0.00016438,2]
[358992405,1745611847474,-500.0,0.00016438,2]
[358992407,1745611847484,-500.0,0.00016438,2]
[358992409,1745611847493,-500.0,0.00016438,2]
[358992411,1745611847502,-500.0,0.00016438,2]
[358992412,1745611847511,-500.0,0.00016438,2]
[358992414,1745611847521,-500.0,0.00016438,2]
[358992416,1745611847530,-500.0,0.00016438,2]
[358992418,1745611847539,-500.0,0.00016438,2]
[358992420,1745611847549,-500.0,0.00016438,2]
[358992422,1745611847558,-500.0,0.00016438,2]
[358992424,1745611847568,-500.0,0.00016438,2]
[358992426,1745611847576,-151.0,0.00016438,2]
[358992428,1745611847586,-500.0,0.00016438,2]
[358992430,1745611847596,-500.0,0.00016438,2]
[358992432,1745611847605,-895.37,0.00016438,2]
[358992434,1745611847614,-500.0,0.00016438,2]
[358992436,1745611847623,-500.0,0.00016438,2]
[358992438,1745611847634,-500.0,0.00016438,2]
[358992440,1745611847643,-500.0,0.00016438,2]
[358992442,1745611847652,-500.0,0.00016438,2]
[358992444,1745611847663,-500.0,0.00016438,2]
[358992446,1745611847672,-500.0,0.00016438,2]
[358992448,1745611847681,-500.0,0.00016438,2]
[358992450,1745611847691,-500.0,0.00016438,2]
[358992452,1745611847700,-500.0,0.00016438,2]
[358992454,1745611847709,-500.0,0.00016438,2]
[358992456,1745611847719,-204.91946607,0.00016438,2]
[358992458,1745611847727,-500.0,0.00016438,2]
[358992460,1745611847736,-500.0,0.00016438,2]
[358992462,1745611847745,-151.0,0.00016438,2]
[358992464,1745611847754,-500.0,0.00016438,2]
[358992466,1745611847764,-500.0,0.00016438,2]
[358992468,1745611847775,-500.0,0.00016438,2]
[358992470,1745611847784,-500.0,0.00016438,2]
[358992472,1745611847793,-500.0,0.00016438,2]
[358992474,1745611847802,-500.0,0.00016438,2]
[358992475,1745611847812,-500.0,0.00016438,2]
[358992477,1745611847821,-500.0,0.00016438,2]
[358992479,1745611847831,-180.91782627,0.00016438,2]
[358992481,1745611847840,-500.0,0.00016438,2]
[358992483,1745611847850,-500.0,0.00016438,2]
[358992485,1745611847860,-500.0,0.00016438,2]
[358992487,1745611847870,-500.0,0.00016438,2]
[358992489,1745611847879,-500.0,0.00016438,2]
[358992491,1745611847888,-500.0,0.00016438,2]
[358992493,1745611847898,-500.0,0.00016438,2]
[358992495,1745611847908,-500.0,0.00016438,2]
[358992497,1745611847917,-500.0,0.00016438,2]
[358992499,1745611847927,-500.0,0.00016438,2]
[358992501,1745611847937,-500.0,0.00016438,2]
[358992503,1745611847946,-339.96393621,0.00016438,2]
[358992505,1745611847956,-500.0,0.00016438,2]
[358992507,1745611847965,-500.0,0.00016438,2]
[358992509,1745611847975,-500.0,0.00016438,2]
[358992511,1745611847984,-500.0,0.00016438,2]
[358992513,1745611847994,-500.0,0.00016438,2]
[358992515,1745611848003,-500.0,0.00016438,2]
[358992517,1745611848012,-500.0,0.00016438,2]
[358992518,1745611848022,-528.59158088,0.00016438,2]
[358992520,1745611848032,-501.37468369,0.00016438,2]
[358992522,1745611848041,-500.0,0.00016438,2]
[358992524,1745611848052,-500.0,0.00016438,2]
[358992526,1745611848062,-500.0,0.00016438,2]
[358992528,1745611848075,-500.0,0.00016438,2]
[358992530,1745611848085,-645.54940554,0.00016438,2]
[358992532,1745611848094,-500.0,0.00016438,2]
[358992534,1745611848103,-458.06845523,0.00016438,2]
[358992536,1745611848114,-500.0,0.00016438,2]
[358992538,1745611848124,-500.0,0.00016438,2]
[358992540,1745611848133,-500.0,0.00016438,2]
[358992542,1745611848144,-415.90781107,0.00016438,2]
[358992544,1745611848154,-3916.7,0.00016438,2]
[358992546,1745611848164,-500.0,0.00016438,2]
[358992548,1745611848174,-500.0,0.00016438,2]
[358992550,1745611848184,-500.0,0.00016438,2]
[358992552,1745611848194,-500.0,0.00016438,2]
[358992569,1745611848367,-500.0,0.00016438,2]
[358992571,1745611848378,-500.0,0.00016438,2]
[358992573,1745611848388,-500.0,0.00016438,2]
[358992575,1745611848398,-500.0,0.00016438,2]
[358992577,1745611848408,-500.0,0.00016438,2]
[358992579,1745611848417,-500.0,0.00016438,2]
[358992582,1745611848431,-500.0,0.00016438,2]
[358992584,1745611848441,-500.0,0.00016438,2]
[358992586,1745611848451,-500.0,0.00016438,2]
[358992588,1745611848461,-204.470017,0.00016438,2]
[358992590,1745611848471,-500.0,0.00016438,2]
[358992592,1745611848483,-501.84401182,0.00016438,2]
[358992593,1745611848493,-500.0,0.00016438,2]
[358992595,1745611848503,-517.24952137,0.00016438,2]
[358992597,1745611848513,-500.0,0.00016438,2]
[358992599,1745611848523,-500.0,0.00016438,2]
[358992601,1745611848533,-396.23168428,0.00016438,2]
[358992603,1745611848543,-500.0,0.00016438,2]
[358992605,1745611848552,-500.0,0.00016438,2]
[358992607,1745611848562,-5274.92,0.00016438,2]
[358992609,1745611848572,-500.0,0.00016438,2]
[358992611,1745611848581,-500.0,0.00016438,2]
[358992613,1745611848591,-500.0,0.00016438,2]
[358992615,1745611848600,-500.0,0.00016438,2]
[358992617,1745611848610,-500.0,0.00016438,2]
[358992619,1745611848619,-500.0,0.00016438,2]
[358992621,1745611848629,-500.0,0.00016438,2]
[358992623,1745611848638,-500.0,0.00016438,2]
[358992625,1745611848648,-500.0,0.00016438,2]
[358992627,1745611848657,-526.78974607,0.00016438,2]
[358992629,1745611848667,-500.0,0.00016438,2]
[358992631,1745611848677,-500.0,0.00016438,2]
[358992633,1745611848687,-500.0,0.00016438,2]
[358992634,1745611848695,-500.0,0.00016438,2]
[358992636,1745611848704,-500.0,0.00016438,2]